[Event "FIDE WSTC Open 65 2025"]
[Site "Prague"]
[Date "2025.02.20"]
[Round "4.10"]
[White "Huss, Andreas"]
[Black "Sharif, Mehrshad"]
[Result "1/2-1/2"]
[Annotator "RC"]
[ECO "D38"]
[WhiteElo "2202"]
[BlackElo "2318"]
[PlyCount "28"]
[EventDate "2025.02.17"]
[EventType "team-tourn"]
[EventCountry "CZE"]
[SourceTitle "playchess.com"]
[Source "ChessBase"]
[SourceQuality "1"]
[TimeControl "40/5400+30:1800+30"]

1. d4 {[%emt 0:00:07]} d5 {[%emt 0:00:09]} 2. c4 {[%emt 0:00:07]} e6 {[%emt 0:00:15]} 3. Nf3 {[%emt 0:00:07]} Nf6 {[%emt 0:01:40]} 4. cxd5 {[%emt 0:00:40]} exd5 {[%emt 0:00:50]} 5. Nc3 {[%emt 0:00:08]} Bb4 {[%emt 0:00:51]} 6. Qa4+ {[%emt 0:00:24]} Nc6 {[%emt 0:00:28]} 7. Bg5 {[%emt 0:00:07]} h6 {[%emt 0:01:10]} 8. Bxf6 {[%emt 0:00:23]} Qxf6 {[%emt 0:00:14]} 9. Rc1 {[%emt 0:01:17]} O-O {[%emt 0:01:27]} 10. e3 {[%emt 0:00:20]} Bf5 {[%emt 0:01:20]} 11. a3 {[%emt 0:03:17]} Bxc3+ {[%emt 0:04:40]} 12. Rxc3 {[%emt 0:00:10]} Ne7 {[%emt 0:02:24]} 13. Be2 {[%emt 0:01:49]} c6 {[%emt 0:03:01]} 14. O-O {[%emt 0:00:48]} Nc8 {[%emt 0:07:12]} 1/2-1/2

[Event "FIDE WSTC Open 65 2025"]
[Site "Prague"]
[Date "2025.02.20"]
[Round "4.11"]
[White "Roos, Louis"]
[Black "Vucenovic, Dragomir"]
[Result "0-1"]
[Annotator "ChessBase"]
[ECO "D94"]
[WhiteElo "2312"]
[BlackElo "2128"]
[PlyCount "84"]
[EventDate "2025.02.17"]
[EventType "team-tourn"]
[EventCountry "CZE"]
[SourceTitle "playchess.com"]
[Source "ChessBase"]
[SourceQuality "1"]
[TimeControl "40/5400+30:1800+30"]

1. Nf3 {[%emt 0:00:03]} Nf6 {[%emt 0:00:46]} 2. c4 {[%emt 0:00:44]} c6 {[%emt 0:00:51]} 3. b3 {[%emt 0:03:17]} g6 {[%emt 0:01:55]} 4. Bb2 {[%emt 0:01:52]} Bg7 {[%emt 0:00:11]} 5. e3 {[%emt 0:01:58]} O-O {[%emt 0:00:31]} 6. Be2 {[%emt 0:00:14]} d5 {[%emt 0:00:58]} 7. O-O {[%emt 0:00:30]} Re8 {[%emt 0:02:40]} 8. d4 {[%emt 0:00:52]} Ne4 {[%emt 0:05:30]} 9. Nc3 {[%emt 0:07:19]} Nxc3 {[%emt 0:01:33]} 10. Bxc3 {[%emt 0:00:17]} Bg4 {[%emt 0:01:40]} 11. Rc1 {[%emt 0:06:40]} e6 {[%emt 0:03:39]} 12. Qc2 {[%emt 0:08:02]} Bxf3 {[%emt 0:05:24]} 13. Bxf3 {[%emt 0:01:56]} f5 {[%emt 0:00:47]} 14. g3 {[%emt 0:06:55]} Nd7 {[%emt 0:01:27]} 15. Bg2 {[%emt 0:00:17]} Nf6 {[%emt 0:04:39]} 16. Rfe1 {[%emt 0:03:23]} g5 {[%emt 0:11:57]} 17. cxd5 {[%emt 0:01:26]} cxd5 {[%emt 0:00:33]} 18. Bb4 {[%emt 0:01:28]} Rc8 {[%emt 0:01:28]} 19. Qb2 {[%emt 0:00:14]} Qd7 {[%emt 0:01:31]} 20. Qa3 {[%emt 0:01:52]} a6 {[%emt 0:00:40]} 21. Qa5 {[%emt 0:15:11]} Rxc1 {[%emt 0:15:56]} 22. Rxc1 {[%emt 0:00:23]} Rc8 {[%emt 0:00:04]} 23. Rxc8+ {[%emt 0:04:22]} Qxc8 {[%emt 0:03:51]} 24. Bc5 {[%emt 0:02:51]} Kf7 {[%emt 0:03:59]} 25. b4 {[%emt 0:10:28]} Bf8 {[%emt 0:05:48]} 26. Bf1 {[%emt 0:06:42]} Be7 {[%emt 0:06:42]} 27. Qa3 {[%emt 0:00:58]} Bxc5 {[%emt 0:10:19]} 28. dxc5 {[%emt 0:01:22]} Qc7 {[%emt 0:01:08]} 29. Qc3 {[%emt 0:02:59]} e5 {[%emt 0:00:47]} 30. a4 {[%emt 0:02:46]} a5 {[%emt 0:01:04]} 31. Bd3 {[%emt 0:03:55]} e4 {[%emt 0:01:36]} 32. Bb5 {[%emt 0:00:16]} axb4 {[%emt 0:00:32]} 33. Qxb4 {[%emt 0:00:08]} f4 {[%emt 0:00:20]} 34. c6 {[%emt 0:04:08]} bxc6 {[%emt 0:01:05]} 35. Qc5 {[%emt 0:00:45]} Qa5 {[%emt 0:00:20]} 36. Qxc6 {[%emt 0:00:45]} Qe1+ {[%emt 0:00:13]} 37. Bf1 {[%emt 0:00:10]} fxe3 {[%emt 0:00:11]} 38. Qc7+ {[%emt 0:00:24]} Kg6 {[%emt 0:00:15]} 39. Qc2 {[%emt 0:00:39]} exf2+ {[%emt 0:01:16]} 40. Qxf2 {[%emt 0:00:02]} Qa1 {[%emt 0:00:13]} 41. Qc2 {[%emt 0:31:42]} d4 {[%emt 0:32:27]} 42. Kg2 {[%emt 0:00:00]} Qc3 {[%emt 0:00:00]} 0-1

[Event "FIDE WSTC Open 65 2025"]
[Site "Prague"]
[Date "2025.02.20"]
[Round "4.12"]
[White "Kradolfer, Georg"]
[Black "Giffard, Nicolas"]
[Result "1/2-1/2"]
[Annotator "ChessBase"]
[ECO "A23"]
[WhiteElo "1937"]
[BlackElo "2154"]
[PlyCount "39"]
[EventDate "2025.02.17"]
[EventType "team-tourn"]
[EventCountry "CZE"]
[SourceTitle "playchess.com"]
[Source "ChessBase"]
[SourceQuality "1"]
[TimeControl "40/5400+30:1800+30"]

1. c4 {[%emt 0:00:06]} e5 {[%emt 0:00:41]} 2. Nc3 {[%emt 0:00:17]} Nf6 {[%emt 0:00:15]} 3. g3 {[%emt 0:00:08]} c6 {[%emt 0:02:54]} 4. Nf3 {[%emt 0:02:58]} e4 {[%emt 0:03:13]} 5. Nd4 {[%emt 0:04:38]} Bc5 {[%emt 0:01:04]} 6. Nb3 {[%emt 0:23:30]} Be7 {[%emt 0:01:08]} 7. Bg2 {[%emt 0:00:35]} d5 {[%emt 0:00:28]} 8. cxd5 {[%emt 0:01:00]} cxd5 {[%emt 0:00:10]} 9. d3 {[%emt 0:03:49]} exd3 {[%emt 0:12:51]} 10. Qxd3 {[%emt 0:02:10]} Be6 {[%emt 0:00:10]} 11. Nd4 {[%emt 0:10:15]} Nc6 {[%emt 0:03:47]} 12. Nxc6 {[%emt 0:03:20]} bxc6 {[%emt 0:01:56]} 13. O-O {[%emt 0:00:05]} O-O {[%emt 0:04:51]} 14. b3 {[%emt 0:05:25]} Qd7 {[%emt 0:01:53]} 15. Bb2 {[%emt 0:02:18]} Rfd8 {[%emt 0:05:24]} 16. Rfd1 {[%emt 0:02:44]} Qb7 {[%emt 0:05:39]} 17. Rac1 {[%emt 0:01:27]} Bf8 {[%emt 0:01:05]} 18. Na4 {[%emt 0:03:34]} Nd7 {[%emt 0:00:14]} 19. Bd4 {[%emt 0:02:17]} Rac8 {[%emt 0:04:18]} 20. Nc5 {[%emt 0:03:24]} 1/2-1/2

[Event "FIDE WSTC Open 65 2025"]
[Site "Prague"]
[Date "2025.02.20"]
[Round "4.13"]
[White "Yrjola, Jouni"]
[Black "Birnboim, Nathan"]
[Result "1/2-1/2"]
[Annotator "ChessBase"]
[ECO "A28"]
[WhiteElo "2287"]
[BlackElo "2313"]
[PlyCount "25"]
[EventDate "2025.02.17"]
[EventType "team-tourn"]
[EventCountry "CZE"]
[SourceTitle "playchess.com"]
[Source "ChessBase"]
[SourceQuality "1"]
[TimeControl "40/5400+30:1800+30"]

1. c4 {[%emt 0:00:06]} e5 {[%emt 0:00:43]} 2. Nc3 {[%emt 0:00:19]} Nf6 {[%emt 0:00:08]} 3. Nf3 {[%emt 0:00:18]} Nc6 {[%emt 0:00:05]} 4. e3 {[%emt 0:00:26]} d5 {[%emt 0:00:25]} 5. cxd5 {[%emt 0:00:31]} Nxd5 {[%emt 0:00:08]} 6. Bb5 {[%emt 0:00:16]} Nxc3 {[%emt 0:00:12]} 7. bxc3 {[%emt 0:00:09]} Bd6 {[%emt 0:00:11]} 8. d4 {[%emt 0:00:45]} Bd7 {[%emt 0:00:41]} 9. O-O {[%emt 0:03:01]} O-O {[%emt 0:01:56]} 10. Nd2 {[%emt 0:04:43]} Re8 {[%emt 0:30:28]} 11. Bd3 {[%emt 0:28:22]} Bf8 {[%emt 0:27:55]} 12. Rb1 {[%emt 0:19:54]} Rb8 {[%emt 0:00:13]} 13. Qc2 {[%emt 0:04:24]} 1/2-1/2

[Event "FIDE WSTC Open 65 2025"]
[Site "Prague"]
[Date "2025.02.20"]
[Round "4.14"]
[White "Maryasin, Boris"]
[Black "Binham, Timothy F."]
[Result "0-1"]
[Annotator "ChessBase"]
[ECO "C55"]
[WhiteElo "2218"]
[BlackElo "2250"]
[PlyCount "68"]
[EventDate "2025.02.17"]
[EventType "team-tourn"]
[EventCountry "CZE"]
[SourceTitle "playchess.com"]
[Source "ChessBase"]
[SourceQuality "1"]
[TimeControl "40/5400+30:1800+30"]

1. e4 {[%emt 0:00:06]} e5 {[%emt 0:00:06]} 2. Nf3 {[%emt 0:00:25]} Nc6 {[%emt 0:00:03]} 3. Bc4 {[%emt 0:00:29]} Nf6 {[%emt 0:00:08]} 4. d3 {[%emt 0:00:06]} h6 {[%emt 0:00:29]} 5. O-O {[%emt 0:00:22]} d6 {[%emt 0:00:26]} 6. c3 {[%emt 0:00:20]} g5 {[%emt 0:01:26]} 7. Re1 {[%emt 0:07:14]} Bg7 {[%emt 0:01:06]} 8. d4 {[%emt 0:00:51]} Bg4 {[%emt 0:03:43]} 9. Bb5 {[%emt 0:03:50]} Nd7 {[%emt 0:09:56]} 10. d5 {[%emt 0:06:19]} Ne7 {[%emt 0:00:50]} 11. h3 {[%emt 0:03:32]} Bh5 {[%emt 0:00:54]} 12. Nbd2 {[%emt 0:01:12]} c6 {[%emt 0:05:00]} 13. dxc6 {[%emt 0:01:27]} bxc6 {[%emt 0:00:03]} 14. Ba4 {[%emt 0:00:53]} Nc5 {[%emt 0:01:09]} 15. Bc2 {[%emt 0:00:16]} O-O {[%emt 0:05:05]} 16. g4 {[%emt 0:01:07]} Bg6 {[%emt 0:00:05]} 17. b4 {[%emt 0:08:47]} Ne6 {[%emt 0:01:18]} 18. Nc4 {[%emt 0:00:27]} d5 {[%emt 0:13:56]} 19. Ncxe5 {[%emt 0:00:55]} Bxe4 {[%emt 0:00:35]} 20. Bxe4 {[%emt 0:02:05]} dxe4 {[%emt 0:00:03]} 21. Qxd8 {[%emt 0:00:43]} Rfxd8 {[%emt 0:01:31]} 22. Rxe4 {[%emt 0:00:24]} Rd1+ {[%emt 0:01:17]} 23. Kh2 {[%emt 0:01:51]} a5 {[%emt 0:04:00]} 24. a3 {[%emt 0:06:53]} Nd5 {[%emt 0:03:02]} 25. Rc4 {[%emt 0:04:15]} Nef4 {[%emt 0:07:34]} 26. Bb2 {[%emt 0:09:32]} Rxa1 {[%emt 0:00:47]} 27. Bxa1 {[%emt 0:00:08]} axb4 {[%emt 0:00:38]} 28. cxb4 {[%emt 0:00:19]} Rxa3 {[%emt 0:00:23]} 29. Bd4 {[%emt 0:00:37]} f6 {[%emt 0:03:18]} 30. Rxc6 {[%emt 0:09:18]} fxe5 {[%emt 0:00:41]} 31. Nxe5 {[%emt 0:00:16]} Rxh3+ {[%emt 0:02:24]} 32. Kg1 {[%emt 0:00:02]} Rb3 {[%emt 0:03:18]} 33. Rc8+ {[%emt 0:00:24]} Kh7 {[%emt 0:00:01]} 34. Rd8 {[%emt 0:02:03]} Rxb4 {[%emt 0:00:56]} 0-1

[Event "FIDE WSTC Open 65 2025"]
[Site "Prague"]
[Date "2025.02.20"]
[Round "4.15"]
[White "Westerinen, Heikki M.J."]
[Black "Lederman, Leon"]
[Result "0-1"]
[Annotator "ChessBase"]
[ECO "C02"]
[WhiteElo "2213"]
[BlackElo "2198"]
[PlyCount "114"]
[EventDate "2025.02.17"]
[EventType "team-tourn"]
[EventCountry "CZE"]
[SourceTitle "playchess.com"]
[Source "ChessBase"]
[SourceQuality "1"]
[TimeControl "40/5400+30:1800+30"]

1. e4 {[%emt 0:00:03]} c5 {[%emt 0:00:06]} 2. c3 {[%emt 0:00:15]} e6 {[%emt 0:00:06]} 3. d4 {[%emt 0:00:37]} d5 {[%emt 0:00:04]} 4. e5 {[%emt 0:01:04]} Nc6 {[%emt 0:00:04]} 5. Nf3 {[%emt 0:00:29]} Qb6 {[%emt 0:00:06]} 6. Bd3 {[%emt 0:05:23]} Bd7 {[%emt 0:00:10]} 7. dxc5 {[%emt 0:05:51]} Bxc5 {[%emt 0:00:13]} 8. O-O {[%emt 0:00:21]} a5 {[%emt 0:00:19]} 9. a4 {[%emt 0:03:57]} f5 {[%emt 0:07:17]} 10. Na3 {[%emt 0:04:47]} Nge7 {[%emt 0:02:50]} 11. Nb5 {[%emt 0:00:48]} O-O {[%emt 0:08:14]} 12. Qe2 {[%emt 0:03:57]} Na7 {[%emt 0:06:59]} 13. Nbd4 {[%emt 0:19:16]} Nec6 {[%emt 0:03:14]} 14. Be3 {[%emt 0:11:33]} Nxd4 {[%emt 0:02:09]} 15. Nxd4 {[%emt 0:00:49]} Nc6 {[%emt 0:01:12]} 16. Nxc6 {[%emt 0:10:02]} bxc6 {[%emt 0:03:33]} 17. Bxc5 {[%emt 0:00:16]} Qxc5 {[%emt 0:00:06]} 18. Qd2 {[%emt 0:06:39]} Rfb8 {[%emt 0:08:56]} 19. Rfb1 {[%emt 0:00:20]} Rb6 {[%emt 0:00:28]} 20. Bc2 {[%emt 0:03:53]} Rab8 {[%emt 0:02:07]} 21. b3 {[%emt 0:00:09]} Qe7 {[%emt 0:02:57]} 22. Re1 {[%emt 0:01:48]} c5 {[%emt 0:01:51]} 23. Re3 {[%emt 0:00:22]} Qg5 {[%emt 0:04:10]} 24. Qd3 {[%emt 0:01:14]} Bc8 {[%emt 0:01:17]} 25. Rg3 {[%emt 0:00:39]} Qf4 {[%emt 0:01:28]} 26. Re1 {[%emt 0:00:45]} Ba6 {[%emt 0:00:09]} 27. Qd1 {[%emt 0:01:36]} c4 {[%emt 0:03:11]} 28. bxc4 {[%emt 0:01:52]} Bxc4 {[%emt 0:00:06]} 29. Rf3 {[%emt 0:00:51]} Qg5 {[%emt 0:01:45]} 30. Rg3 {[%emt 0:00:54]} Qe7 {[%emt 0:00:13]} 31. Bd3 {[%emt 0:03:16]} Bxd3 {[%emt 0:04:26]} 32. Qxd3 {[%emt 0:00:12]} Qc5 {[%emt 0:00:09]} 33. h4 {[%emt 0:01:48]} Rb2 {[%emt 0:01:02]} 34. Qf3 {[%emt 0:02:24]} Rb1 {[%emt 0:02:32]} 35. Rxb1 {[%emt 0:00:33]} Rxb1+ {[%emt 0:00:02]} 36. Kh2 {[%emt 0:00:03]} Rf1 {[%emt 0:05:34]} 37. Qh5 {[%emt 0:00:26]} Qe7 {[%emt 0:00:12]} 38. Rf3 {[%emt 0:02:59]} Re1 {[%emt 0:03:01]} 39. Re3 {[%emt 0:02:15]} Ra1 {[%emt 0:00:18]} 40. c4 {[%emt 0:01:54]} g6 {[%emt 0:02:29]} 41. Qh6 {[%emt 0:30:50]} Rxa4 {[%emt 0:30:25]} 42. Rb3 {[%emt 0:00:07]} Rb4 {[%emt 0:00:19]} 43. Rxb4 {[%emt 0:01:10]} axb4 {[%emt 0:00:05]} 44. cxd5 {[%emt 0:00:21]} exd5 {[%emt 0:00:05]} 45. Qf4 {[%emt 0:00:49]} Kf7 {[%emt 0:04:08]} 46. Qd4 {[%emt 0:00:56]} Qb7 {[%emt 0:00:17]} 47. g4 {[%emt 0:00:00]} b3 {[%emt 0:00:00]} 48. gxf5 {[%emt 0:00:00]} gxf5 {[%emt 0:00:00]} 49. Qd1 {[%emt 0:00:00]} Ke6 {[%emt 0:00:00]} 50. f4 {[%emt 0:00:00]} b2 {[%emt 0:00:00]} 51. Qh5 {[%emt 0:00:00]} b1=Q {[%emt 0:00:00]} 52. Qh6+ {[%emt 0:00:00]} Kd7 {[%emt 0:00:00]} 53. Qd6+ {[%emt 0:00:00]} Ke8 {[%emt 0:00:00]} 54. Qe6+ {[%emt 0:00:00]} Qe7 {[%emt 0:00:00]} 55. Qg8+ {[%emt 0:00:00]} Kd7 {[%emt 0:00:00]} 56. Qxd5+ {[%emt 0:00:00]} Kc7 {[%emt 0:00:00]} 57. Qc4+ {[%emt 0:00:00]} Kb8 {[%emt 0:00:00]} 0-1

[Event "FIDE WSTC Open 65 2025"]
[Site "Prague"]
[Date "2025.02.20"]
[Round "4.16"]
[White "Gal, Moshe"]
[Black "Joentausta, Hannu"]
[Result "1-0"]
[Annotator "NA"]
[ECO "A54"]
[WhiteElo "2059"]
[BlackElo "2097"]
[PlyCount "93"]
[EventDate "2025.02.17"]
[EventType "team-tourn"]
[EventCountry "CZE"]
[SourceTitle "playchess.com"]
[Source "ChessBase"]
[SourceQuality "1"]
[TimeControl "40/5400+30:1800+30"]

1. c4 {[%emt 0:00:03]} e5 {[%emt 0:00:09]} 2. Nc3 {[%emt 0:00:04]} Nc6 {[%emt 0:00:12]} 3. Nf3 {[%emt 0:00:18]} d6 {[%emt 0:01:17]} 4. d4 {[%emt 0:00:19]} exd4 {[%emt 0:00:12]} 5. Nxd4 {[%emt 0:00:11]} Nf6 {[%emt 0:01:49]} 6. g3 {[%emt 0:00:54]} Bd7 {[%emt 0:07:14]} 7. Bg2 {[%emt 0:00:50]} Be7 {[%emt 0:00:08]} 8. O-O {[%emt 0:00:59]} O-O {[%emt 0:00:07]} 9. b3 {[%emt 0:02:21]} Nxd4 {[%emt 0:10:49]} 10. Qxd4 {[%emt 0:01:50]} Bc6 {[%emt 0:00:29]} 11. e4 {[%emt 0:03:32]} Nd7 {[%emt 0:06:15]} 12. Bb2 {[%emt 0:03:09]} Bf6 {[%emt 0:00:21]} 13. Qd2 {[%emt 0:00:09]} Re8 {[%emt 0:03:07]} 14. Rfe1 {[%emt 0:01:48]} a5 {[%emt 0:02:36]} 15. a3 {[%emt 0:08:26]} Nc5 {[%emt 0:06:44]} 16. Qc2 {[%emt 0:00:42]} Qd7 {[%emt 0:10:29]} 17. b4 {[%emt 0:07:00]} Ba4 {[%emt 0:02:30]} 18. Nxa4 {[%emt 0:01:50]} Qxa4 {[%emt 0:00:12]} 19. Qxa4 {[%emt 0:00:48]} Nxa4 {[%emt 0:00:02]} 20. Bxf6 {[%emt 0:00:31]} gxf6 {[%emt 0:00:02]} 21. e5 {[%emt 0:00:55]} Rxe5 {[%emt 0:02:17]} 22. Rxe5 {[%emt 0:00:38]} fxe5 {[%emt 0:00:17]} 23. Bxb7 {[%emt 0:00:09]} Ra7 {[%emt 0:01:37]} 24. Bd5 {[%emt 0:08:11]} Nb6 {[%emt 0:07:18]} 25. b5 {[%emt 0:01:20]} Nxd5 {[%emt 0:11:13]} 26. cxd5 {[%emt 0:00:27]} a4 {[%emt 0:02:56]} 27. Rb1 {[%emt 0:01:03]} Ra5 {[%emt 0:00:24]} 28. f3 {[%emt 0:02:03]} Kf8 {[%emt 0:01:26]} 29. Kf2 {[%emt 0:00:43]} Ke7 {[%emt 0:00:19]} 30. Ke3 {[%emt 0:00:06]} f5 {[%emt 0:02:41]} 31. Kd3 {[%emt 0:01:52]} Kf6 {[%emt 0:01:36]} 32. Kc4 {[%emt 0:00:38]} h5 {[%emt 0:06:27]} 33. Kb4 {[%emt 0:00:30]} Ra8 {[%emt 0:00:16]} 34. Rc1 {[%emt 0:00:09]} e4 {[%emt 0:00:11]} 35. f4 {[%emt 0:00:29]} Ra7 {[%emt 0:01:34]} 36. Rc6 {[%emt 0:01:25]} Ke7 {[%emt 0:03:07]} 37. Ra6 {[%emt 0:09:09]} Rb7 {[%emt 0:00:28]} 38. Kxa4 {[%emt 0:00:42]} Rb6 {[%emt 0:05:33]} 39. Rxb6 {[%emt 0:00:11]} cxb6 {[%emt 0:00:01]} 40. Kb4 {[%emt 0:00:01]} Kd7 {[%emt 0:03:36]} 41. a4 {[%emt 0:30:13]} Kc7 {[%emt 0:30:13]} 42. Kc4 {[%emt 0:00:07]} Kd7 {[%emt 0:00:08]} 43. Kd4 {[%emt 0:00:05]} Kc7 {[%emt 0:00:07]} 44. h3 {[%emt 0:00:14]} Kd7 {[%emt 0:00:05]} 45. g4 {[%emt 0:00:11]} fxg4 {[%emt 0:00:46]} 46. hxg4 {[%emt 0:00:01]} h4 {[%emt 0:00:38]} 47. Kxe4 {[%emt 0:00:10]} 1-0

[Event "FIDE WSTC Open 65 2025"]
[Site "Prague"]
[Date "2025.02.20"]
[Round "4.17"]
[White "Jansa, Vlastimil"]
[Black "Welling, Gerard"]
[Result "1/2-1/2"]
[Annotator "ChessBase"]
[ECO "C07"]
[WhiteElo "2267"]
[BlackElo "2195"]
[PlyCount "83"]
[EventDate "2025.02.17"]
[EventType "team-tourn"]
[EventCountry "CZE"]
[SourceTitle "playchess.com"]
[Source "ChessBase"]
[SourceQuality "1"]
[TimeControl "40/5400+30:1800+30"]

1. e4 {[%emt 0:00:03]} e6 {[%emt 0:00:06]} 2. d4 {[%emt 0:00:10]} d5 {[%emt 0:00:08]} 3. Nd2 {[%emt 0:00:07]} c5 {[%emt 0:00:56]} 4. Ngf3 {[%emt 0:00:28]} cxd4 {[%emt 0:00:09]} 5. Nxd4 {[%emt 0:01:14]} Nc6 {[%emt 0:00:44]} 6. Bb5 {[%emt 0:00:54]} Bd7 {[%emt 0:01:24]} 7. Nxc6 {[%emt 0:00:57]} Bxc6 {[%emt 0:02:16]} 8. Bxc6+ {[%emt 0:00:38]} bxc6 {[%emt 0:00:03]} 9. c4 {[%emt 0:00:17]} Nf6 {[%emt 0:02:36]} 10. Qa4 {[%emt 0:01:36]} Qd7 {[%emt 0:01:59]} 11. e5 {[%emt 0:05:36]} c5 {[%emt 0:09:23]} 12. Qc2 {[%emt 0:13:31]} Ng8 {[%emt 0:00:45]} 13. cxd5 {[%emt 0:05:08]} exd5 {[%emt 0:00:03]} 14. O-O {[%emt 0:00:43]} Nh6 {[%emt 0:04:19]} 15. Nf3 {[%emt 0:08:17]} Nf5 {[%emt 0:00:22]} 16. Re1 {[%emt 0:04:47]} Be7 {[%emt 0:00:54]} 17. Bg5 {[%emt 0:01:32]} Rc8 {[%emt 0:01:29]} 18. Rad1 {[%emt 0:04:49]} O-O {[%emt 0:24:55]} 19. Bxe7 {[%emt 0:24:19]} Nxe7 {[%emt 0:00:03]} 20. Ng5 {[%emt 0:01:01]} Ng6 {[%emt 0:01:57]} 21. e6 {[%emt 0:02:01]} fxe6 {[%emt 0:00:07]} 22. Nxe6 {[%emt 0:00:10]} Rf6 {[%emt 0:02:03]} 23. Nxc5 {[%emt 0:01:47]} Qg4 {[%emt 0:05:15]} 24. h3 {[%emt 0:03:05]} Qg5 {[%emt 0:03:52]} 25. Rd3 {[%emt 0:03:50]} Qf5 {[%emt 0:05:13]} 26. b4 {[%emt 0:03:12]} Ne5 {[%emt 0:11:00]} 27. Rxe5 {[%emt 0:09:00]} Qxe5 {[%emt 0:00:07]} 28. Qd2 {[%emt 0:00:17]} Rd8 {[%emt 0:09:18]} 29. Rd4 {[%emt 0:00:10]} h5 {[%emt 0:03:56]} 30. h4 {[%emt 0:01:31]} Rdd6 {[%emt 0:00:29]} 31. g3 {[%emt 0:00:20]} Rf3 {[%emt 0:01:34]} 32. Ne4 {[%emt 0:01:10]} Rc6 {[%emt 0:04:06]} 33. Ng5 {[%emt 0:02:50]} Rxg3+ {[%emt 0:00:02]} 34. fxg3 {[%emt 0:00:30]} Qxg3+ {[%emt 0:00:02]} 35. Kh1 {[%emt 0:00:18]} Rf6 {[%emt 0:01:01]} 36. Qe2 {[%emt 0:00:25]} Rf8 {[%emt 0:02:45]} 37. Qe6+ {[%emt 0:01:15]} Kh8 {[%emt 0:00:06]} 38. Nf7+ {[%emt 0:00:18]} Kh7 {[%emt 0:00:17]} 39. Ng5+ {[%emt 0:00:17]} Kh8 {[%emt 0:00:01]} 40. Nf7+ {[%emt 0:00:21]} Kh7 {[%emt 0:00:16]} 41. Qxd5 {[%emt 0:31:35]} Qe1+ {[%emt 0:32:36]} 42. Kg2 {[%emt 0:06:01]} 1/2-1/2

[Event "FIDE WSTC Open 65 2025"]
[Site "Prague"]
[Date "2025.02.20"]
[Round "4.18"]
[White "Prakken, Gerrit"]
[Black "Polasek, Jaroslav"]
[Result "1-0"]
[Annotator "RC"]
[ECO "A99"]
[WhiteElo "2155"]
[BlackElo "2344"]
[PlyCount "81"]
[EventDate "2025.02.17"]
[EventType "team-tourn"]
[EventCountry "CZE"]
[SourceTitle "playchess.com"]
[Source "ChessBase"]
[SourceQuality "1"]
[TimeControl "40/5400+30:1800+30"]

1. d4 {[%emt 0:00:07]} e6 {[%emt 0:00:06]} 2. Nf3 {[%emt 0:00:10]} f5 {[%emt 0:00:44]} 3. g3 {[%emt 0:00:30]} Nf6 {[%emt 0:00:04]} 4. Bg2 {[%emt 0:00:08]} Be7 {[%emt 0:00:05]} 5. O-O {[%emt 0:00:15]} O-O {[%emt 0:00:05]} 6. c4 {[%emt 0:00:21]} d6 {[%emt 0:00:17]} 7. Nc3 {[%emt 0:00:34]} Qe8 {[%emt 0:01:12]} 8. b3 {[%emt 0:01:08]} Qh5 {[%emt 0:00:20]} 9. Ba3 {[%emt 0:03:01]} Nbd7 {[%emt 0:00:34]} 10. Nd2 {[%emt 0:09:39]} Qh6 {[%emt 0:12:44]} 11. Rc1 {[%emt 0:04:47]} e5 {[%emt 0:18:35]} 12. dxe5 {[%emt 0:13:50]} Nxe5 {[%emt 0:01:09]} 13. Nf3 {[%emt 0:13:25]} Nxf3+ {[%emt 0:05:27]} 14. exf3 {[%emt 0:03:35]} f4 {[%emt 0:09:28]} 15. Re1 {[%emt 0:02:57]} Bd8 {[%emt 0:00:04]} 16. c5 {[%emt 0:01:24]} Bd7 {[%emt 0:13:06]} 17. cxd6 {[%emt 0:06:07]} c6 {[%emt 0:00:15]} 18. Rc2 {[%emt 0:05:03]} Ba5 {[%emt 0:03:36]} 19. b4 {[%emt 0:00:49]} Bb6 {[%emt 0:00:06]} 20. Bc1 {[%emt 0:00:42]} g5 {[%emt 0:00:36]} 21. Re5 {[%emt 0:02:20]} Rae8 {[%emt 0:03:07]} 22. Rce2 {[%emt 0:00:35]} Bd8 {[%emt 0:03:08]} 23. Qd4 {[%emt 0:04:03]} Nh5 {[%emt 0:03:26]} 24. Rxe8 {[%emt 0:01:51]} Bxe8 {[%emt 0:02:47]} 25. Bh3 {[%emt 0:08:06]} Bf7 {[%emt 0:00:32]} 26. Ne4 {[%emt 0:03:08]} Bb6 {[%emt 0:07:40]} 27. Nc5 {[%emt 0:01:06]} fxg3 {[%emt 0:00:25]} 28. Bb2 {[%emt 0:01:39]} gxf2+ {[%emt 0:05:06]} 29. Rxf2 {[%emt 0:00:48]} Bd5 {[%emt 0:00:58]} 30. d7 {[%emt 0:01:59]} Nf4 {[%emt 0:02:53]} 31. Bg4 {[%emt 0:00:39]} Qg6 {[%emt 0:00:55]} 32. Bf5 {[%emt 0:01:16]} Qh6 {[%emt 0:01:43]} 33. Kh1 {[%emt 0:05:23]} Nh5 {[%emt 0:02:56]} 34. Be4 {[%emt 0:02:05]} Be6 {[%emt 0:02:05]} 35. Qd6 {[%emt 0:01:25]} Nf4 {[%emt 0:01:03]} 36. Rd2 {[%emt 0:01:05]} Qh3 {[%emt 0:00:31]} 37. Rf2 {[%emt 0:01:23]} Bxd7 {[%emt 0:00:27]} 38. Nxd7 {[%emt 0:00:50]} Rd8 {[%emt 0:00:29]} 39. Qe7 {[%emt 0:00:35]} Qh6 {[%emt 0:00:38]} 40. Rd2 {[%emt 0:00:44]} Nd5 {[%emt 0:00:35]} 41. Rxd5 {[%emt 0:30:26]} 1-0

[Event "FIDE WSTC Open 65 2025"]
[Site "Prague"]
[Date "2025.02.20"]
[Round "4.19"]
[White "Mozny, Milos"]
[Black "Van Egmond, Rogier"]
[Result "1/2-1/2"]
[Annotator "ChessBase"]
[ECO "A46"]
[WhiteElo "2232"]
[BlackElo "2057"]
[PlyCount "40"]
[EventDate "2025.02.17"]
[EventType "team-tourn"]
[EventCountry "CZE"]
[SourceTitle "playchess.com"]
[Source "ChessBase"]
[SourceQuality "1"]
[TimeControl "40/5400+30:1800+30"]

1. d4 {[%emt 0:02:08]} Nf6 {[%emt 0:00:08]} 2. Nf3 {[%emt 0:00:13]} e6 {[%emt 0:00:12]} 3. g3 {[%emt 0:00:18]} b5 {[%emt 0:00:31]} 4. a4 {[%emt 0:00:54]} b4 {[%emt 0:00:10]} 5. Bg2 {[%emt 0:00:30]} Bb7 {[%emt 0:00:06]} 6. a5 {[%emt 0:00:07]} c5 {[%emt 0:00:32]} 7. c3 {[%emt 0:00:54]} cxd4 {[%emt 0:02:52]} 8. cxd4 {[%emt 0:00:10]} Be7 {[%emt 0:01:43]} 9. O-O {[%emt 0:00:14]} O-O {[%emt 0:00:07]} 10. Nbd2 {[%emt 0:00:06]} Na6 {[%emt 0:05:53]} 11. Nb3 {[%emt 0:02:01]} d6 {[%emt 0:02:02]} 12. Qd3 {[%emt 0:02:10]} Qc8 {[%emt 0:02:49]} 13. Bf4 {[%emt 0:09:42]} Be4 {[%emt 0:00:50]} 14. Qe3 {[%emt 0:00:59]} Qb7 {[%emt 0:02:18]} 15. Rfc1 {[%emt 0:01:13]} Rfc8 {[%emt 0:06:43]} 16. Nbd2 {[%emt 0:03:55]} Rxc1+ {[%emt 0:08:11]} 17. Rxc1 {[%emt 0:00:07]} Bd5 {[%emt 0:00:29]} 18. Qd3 {[%emt 0:01:29]} h6 {[%emt 0:09:18]} 19. Bf1 {[%emt 0:06:48]} Ne4 {[%emt 0:04:32]} 20. Nxe4 {[%emt 0:10:28]} Bxe4 {[%emt 0:00:04]} 1/2-1/2